fUSD/lending_fUSD_20260108
["ID","MTS","AMOUNT","RATE_DAILY","PERIOD"]
[400998000,1767882643426,-402.14488,0.0001783,2]
[400998004,1767882643435,-25000.0,0.00017838,3]
[400998007,1767882643444,-300.0,0.00017842,2]
[400998010,1767882643453,-300.0,0.00017843,2]
[400998013,1767882643463,-300.0,0.00017845,2]
[400998015,1767882643472,-25000.0,0.00017847,3]
[400998017,1767882643482,-200.0,0.00017855,2]
[400998019,1767882643492,-25000.0,0.00017856,3]
[400998021,1767882643501,-200.0,0.00017856,2]
[400998023,1767882643511,-402.14488,0.0001786,2]
[400998025,1767882643520,-500.00000001,0.00017864,2]
[400998027,1767882643529,-25000.0,0.00017865,3]
[400998029,1767882643539,-25000.0,0.00017874,3]
[400998032,1767882643565,-402.14489,0.0001788,2]
[400998033,1767882643578,-25000.0,0.00017882,3]
[400998035,1767882643587,-25000.0,0.00017882,3]
[400998038,1767882643597,-750.1,0.00017886,2]
[400998040,1767882643606,-1000.0,0.00017891,2]
[400998042,1767882643616,-25000.0,0.00017891,3]
[400998044,1767882643628,-25000.0,0.00017891,3]
[400998046,1767882643638,-500.0,0.00017899,2]
[400998048,1767882643649,-570.13547988,0.00017899,2]
[400998050,1767882643666,-500.0,0.00017899,2]
[400998052,1767882643676,-25000.0,0.000179,3]
[400998054,1767882643685,-10000.0,0.000179,2]
[400998055,1767882643694,-173.15293317,0.000179,2]
[400998057,1767882643707,-163.04,0.000179,3]
[400998059,1767882643716,-5284.10968142,0.000179,2]
[400998062,1767882643727,-190.04272048,0.000179,3]
[400998064,1767882643737,-25000.0,0.000179,3]
[400998066,1767882643747,-23965.2139512,0.000179,2]
[400998068,1767882643757,-423.76529882,0.000179,2]
[400998070,1767882643766,-11770.0,0.000179,2]
[400998072,1767882643775,-300.0,0.00017903,2]
[400998074,1767882643787,-168.0,0.00017907,2]
[400998076,1767882643796,-402.14488,0.0001791,2]
[400998078,1767882643805,-300.0,0.0001793,2]
[400998080,1767882643814,-300.0,0.00017955,2]
[400998082,1767882643826,-235.35795411,0.00017973,2]
[400998084,1767882643835,-500.0,0.00017973,2]
[400998085,1767882643844,-500.0,0.00017973,2]
[400998088,1767882643854,-500.0,0.00017973,2]
[400998090,1767882643863,-159.904,0.00017973,2]
[400998092,1767882643873,-500.0,0.00017973,2]
[400998093,1767882643882,-352.9335528,0.00017973,2]
[400998095,1767882643891,-500.0,0.00017973,2]
[400998098,1767882643908,-500.0,0.00017973,2]
[400998101,1767882643920,-505.27205439,0.00017973,2]
[400998103,1767882643929,-500.0,0.00017973,2]
[400998105,1767882643939,-500.0,0.00017973,2]
[400998107,1767882643948,-500.0,0.00017973,2]
[400998109,1767882643959,-500.0,0.00017973,2]
[400998111,1767882643969,-500.0,0.00017973,2]
[400998113,1767882643978,-500.0,0.00017973,2]
[400998115,1767882643988,-500.0,0.00017973,2]
[400998117,1767882643997,-200.150002,0.00017997,2]
[400998119,1767882644006,-17041.185307,0.00017998,2]
[400998121,1767882644016,-170.366876,0.00017998,2]
[400998123,1767882644025,-44083.9846654,0.00017998,2]
[400998125,1767882644034,-33062.988499,0.00017998,2]
[400998127,1767882644043,-164.05043287,0.00017999,2]
[400998129,1767882644052,-300.0,0.00017999,2]
[400998132,1767882644065,-300.0,0.00017999,2]
[400998134,1767882644076,-500.0,0.00017999,2]
[400998136,1767882644086,-500.0,0.00017999,2]
[400998138,1767882644095,-737.8333336,0.00017999,2]
[400998140,1767882644104,-404.32200531,0.00017999,2]
[400998142,1767882644114,-418.69539905,0.00017999,2]
[400998144,1767882644123,-300.0,0.00017999,2]
[400998146,1767882644132,-300.0,0.00017999,2]
[400998148,1767882644141,-666.0,0.00017999,2]
[400998150,1767882644151,-1894757.04899449,0.00018,2]
[400998152,1767882644161,-512.89819875,0.00018,2]
[400998154,1767882644170,-512.89819875,0.00018,2]
[400998156,1767882644179,-512.89819875,0.00018,2]
[400998158,1767882644188,-512.89819875,0.00018,2]
[400998160,1767882644197,-512.89819875,0.00018,2]
[400998162,1767882644206,-512.89819875,0.00018,2]
[400998164,1767882644216,-512.89819875,0.00018,2]
[400998166,1767882644225,-512.89819875,0.00018,2]
[400998168,1767882644235,-512.89819875,0.00018,2]
[400998170,1767882644244,-512.89819874,0.00018,2]
[400998172,1767882644254,-512.89819874,0.00018,2]
[400998174,1767882644264,-512.89819874,0.00018,2]
[400998176,1767882644273,-512.89819874,0.00018,2]
[400998178,1767882644283,-512.89819874,0.00018,2]
[400998180,1767882644292,-512.89819874,0.00018,2]
[400998182,1767882644301,-512.89819874,0.00018,2]
[400998184,1767882644313,-512.89819874,0.00018,2]
[400998186,1767882644324,-512.89819874,0.00018,2]
[400998188,1767882644334,-512.89819874,0.00018,2]
[400998190,1767882644343,-512.89819874,0.00018,2]
[400998192,1767882644352,-150.0,0.00018,2]
[400998194,1767882644362,-150.0,0.00018,2]
[400998196,1767882644371,-3823.52328067,0.00018,2]
[400998198,1767882644380,-150.0,0.00018,2]
[400998200,1767882644391,-2449.55923582,0.00018,2]
[400998202,1767882644400,-4645.88845404,0.00018,2]
[400998204,1767882644410,-150.0,0.00018,2]
[400998206,1767882644419,-13407.89223482,0.00018,2]
[400998208,1767882644429,-1083.61,0.00018,7]
[400998210,1767882644442,-3828427.02243973,0.00018,2]
[400998344,1767882645642,-1.7e-07,0.00018,2]
[400998346,1767882645658,-3828.86735665,0.00018,2]
[400998349,1767882645671,-5678.50813704,0.00018,2]
[400998352,1767882645695,-3981.30851948,0.00018,2]
[400998355,1767882645708,-31979.043553,0.00018,2]
[400998440,1767882646516,-25000.0,0.00017874,3]
[400998442,1767882646526,-13187.2889936,0.00018,2]
[400998445,1767882646541,-3035.7199144,0.00018,2]
[400998447,1767882646552,-22404.5,0.00018,2]
[400998449,1767882646563,-20700.0,0.00018,2]
[400998453,1767882646594,-69.64520115,0.00018,2]
[400998455,1767882646607,-289.8224,0.00018,2]
[400998492,1767882646949,-557.69012946,0.00015622,2]
[400998544,1767882647442,-7.30987054,0.00015622,2]
[400998547,1767882647455,-429256.62935791,0.00018,2]
[400998549,1767882647466,-3624.6899962,0.00018,2]
[401001428,1767882701784,-492.44163846,0.00010606,2]
[401001429,1767882704395,-218.10019838,0.00010606,2]
[401001431,1767882709937,-187.20415455,0.00010606,2]
[401001433,1767882744346,500.0,0.00010591,2]
[401001672,1767883028120,151.0,0.00010606,2]
[401001673,1767883028752,151.0,0.00010606,2]
[401001674,1767883029494,151.0,0.00010606,2]
[401001675,1767883030090,151.0,0.00010606,2]
[401001678,1767883030975,151.0,0.00010606,2]
[401001679,1767883032175,151.0,0.00010606,2]
[401001680,1767883032862,151.0,0.00010606,2]
[401001681,1767883033535,151.0,0.00010606,2]
[401001682,1767883034139,151.0,0.00010606,2]
[401001683,1767883034888,151.0,0.00010606,2]
[401001684,1767883035492,151.0,0.00010606,2]
[401001685,1767883036181,151.0,0.00010606,2]
[401001686,1767883036883,151.0,0.00010606,2]
[401001688,1767883037486,151.0,0.00010606,2]
[401001689,1767883038074,-29.71480861,0.00010606,2]
[401001690,1767883038164,151.0,0.00010606,2]
[401001691,1767883038772,151.0,0.00010606,2]
[401001693,1767883039504,151.0,0.00010606,2]
[401001694,1767883040413,151.0,0.00010606,2]
[401001695,1767883041651,151.0,0.00010606,2]
[401001696,1767883041898,151.0,0.00010606,2]
[401001709,1767883073850,-151.0,0.00010606,2]
[401001710,1767883073888,-151.0,0.00010606,2]
[401001711,1767883073925,-151.0,0.00010606,2]
[401001712,1767883073962,-151.0,0.00010606,2]
[401001713,1767883074000,-151.0,0.00010606,2]
[401001714,1767883074046,-151.0,0.00010606,2]
[401001715,1767883074085,-151.0,0.00010606,2]
[401001716,1767883074123,-151.0,0.00010606,2]
[401001717,1767883074160,-151.0,0.00010606,2]
[401001718,1767883074199,-151.0,0.00010606,2]
[401001719,1767883074236,-151.0,0.00010606,2]
[401001744,1767883199112,999.0,0.00011792,3]
[401001752,1767883292761,164.0,0.000226,120]
[401001779,1767883565105,-245.98424924,0.00010606,2]
[401001816,1767883796840,-253.74994116,0.00010525,2]
[401001818,1767883799530,-203.71064647,0.00010525,2]
[401001822,1767883804639,-42.53941237,0.00010525,2]
[401001850,1767883831838,-279.4840093,0.00010779,2]
[401001851,1767883831849,-238.0,0.00010782,2]
[401001852,1767883831859,-160.52,0.00010782,2]
[401001853,1767883831869,-300.0,0.00010878,2]
[401001854,1767883831878,-1200.0,0.00010878,2]
[401001855,1767883831888,-150.0,0.00010879,2]
[401001856,1767883831898,-150.0,0.00010879,2]
[401001857,1767883831909,-150.0,0.00010879,2]
[401001858,1767883831918,-150.0,0.00010879,2]
[401001859,1767883831928,-500.0,0.00010879,2]
[401001860,1767883831939,-500.0,0.00010879,2]
[401001861,1767883831948,-250.0,0.00010879,2]
[401001862,1767883831960,-150.0,0.00010934,2]
[401001863,1767883831971,-150.0,0.00010934,2]
[401001864,1767883831980,-150.0,0.00010934,2]
[401001865,1767883831990,-500.0,0.00010934,2]
[401001866,1767883832002,-500.0,0.00010934,2]
[401001867,1767883832011,-250.0,0.00010936,2]
[401001868,1767883832021,-200.0,0.00010989,2]
[401001869,1767883832031,-200.0,0.00010989,2]
[401001870,1767883832042,-500.0,0.00010989,2]
[401001871,1767883832052,-200.0,0.00010989,2]
[401001872,1767883832061,-173.0,0.00010989,2]
[401001873,1767883832071,-500.0,0.00011,2]
[401001874,1767883832082,-87947.1078162,0.00011051,2]
[401001875,1767883832106,-9427.5,0.00011051,2]
[401001876,1767883832117,-622.55672686,0.00011051,2]
[401001877,1767883832128,-254.72572641,0.00011051,2]
[401001878,1767883832140,-3513.22526362,0.00011051,2]
[401001879,1767883832164,-2783.81554626,0.00011051,2]
[401001880,1767883832175,-287.06431718,0.00011051,2]
[401001881,1767883832202,-423.53102393,0.00011051,2]
[401001882,1767883832214,-526.6941364,0.00011051,2]
[401001883,1767883832225,-23495.74999999,0.00011051,2]
[401001892,1767883838194,-254.18043806,0.00011051,2]
[401001893,1767883838207,-285.96396319,0.00011051,2]
[401001894,1767883838219,-358.33485164,0.00011051,2]
[401001895,1767883838238,-641.9999998,0.00011051,2]
[401001896,1767883838249,-265.99999984,0.00011051,2]
[401001897,1767883838261,-672.65078649,0.00011051,2]
[401001899,1767883838285,-7925.9659333,0.00011051,2]
[401001901,1767883838296,-2282.32413835,0.00011051,2]
[401002062,1767883840053,-858030.60933248,0.00011051,2]
[401002064,1767883840062,-764.17408073,0.00011067,2]
[401002066,1767883840071,-764.17408073,0.00011067,2]
[401002068,1767883840082,-164.52958141,0.00011067,2]
[401002070,1767883840092,-693.01,0.00011067,2]
[401002072,1767883840101,-300.0,0.00011097,2]
[401002074,1767883840111,-5284.10968148,0.00011099,2]
[401002076,1767883840120,-150.0,0.00011145,2]
[401002078,1767883840129,-780.84,0.00011146,2]
[401002080,1767883840139,-151.0,0.00011146,2]
[401002082,1767883840147,-151.0,0.00011146,2]
[401002085,1767883840157,-151.0,0.00011146,2]
[401002086,1767883840168,-151.0,0.00011146,2]
[401002089,1767883840177,-151.0,0.00011146,2]
[401002090,1767883840187,-217.39850555,0.00011146,2]
[401002092,1767883840196,-151.0,0.00011146,2]
[401002094,1767883840206,-151.0,0.00011146,2]
[401002096,1767883840215,-151.0,0.00011146,2]
[401002098,1767883840224,-151.0,0.00011146,2]
[401002100,1767883840233,-151.0,0.00011146,2]
[401002102,1767883840243,-151.0,0.00011146,2]
[401002104,1767883840252,-151.0,0.00011146,2]
[401002106,1767883840261,-151.0,0.00011146,2]
[401002108,1767883840271,-151.0,0.00011146,2]
[401002110,1767883840280,-151.0,0.00011146,2]
[401002112,1767883840289,-151.0,0.00011146,2]
[401002114,1767883840298,-500.0,0.0001115,2]
[401002116,1767883840307,-500.0,0.0001115,2]
[401002118,1767883840316,-608.75641216,0.0001115,2]
[401002120,1767883840325,-500.0,0.0001115,2]
[401002122,1767883840334,-500.0,0.0001115,2]
[401002124,1767883840344,-500.0,0.0001115,2]
[401002126,1767883840353,-500.0,0.0001115,2]
[401002128,1767883840362,-500.0,0.0001115,2]
[401002130,1767883840371,-500.0,0.0001115,2]
[401002132,1767883840380,-507.25387804,0.0001115,2]
[401002134,1767883840389,-9999.99,0.00011151,2]
[401002136,1767883840398,-2639.33,0.00011151,2]
[401002138,1767883840407,-9999.99,0.00011151,2]
[401002140,1767883840417,-150.99,0.00011151,2]
[401002142,1767883840426,-4987.2,0.00011151,2]
[401002144,1767883840435,-999.99,0.00011151,2]
[401002146,1767883840444,-540.13320386,0.00011151,2]
[401002148,1767883840454,-2545.257,0.00011152,2]
[401002150,1767883840463,-167.212,0.00011152,2]
[401002152,1767883840472,-235.57802038,0.00011167,2]
[401002154,1767883840481,-202.37576797,0.00011267,2]
[401002156,1767883840490,-780.84,0.0001142,2]
[401002158,1767883840499,-173.15293317,0.00011467,2]
[401002160,1767883840508,-1769.1,0.00011661,2]
[401002162,1767883840517,-500.0,0.00011693,2]
[401002164,1767883840526,-150.0,0.00011693,2]
[401002166,1767883840535,-150.0,0.00011693,2]
[401002168,1767883840545,-221.27,0.00011693,2]
[401002170,1767883840555,-500.0,0.00011693,2]
[401002172,1767883840564,-150.0,0.00011693,2]
[401002174,1767883840573,-150.0,0.00011693,2]
[401002176,1767883840582,-150.0,0.00011693,2]
[401002178,1767883840591,-150.0,0.00011693,2]
[401002180,1767883840600,-150.0,0.00011693,2]
[401002182,1767883840610,-500.0,0.00011693,2]
[401002184,1767883840619,-500.0,0.00011693,2]
[401002186,1767883840628,-780.84,0.00011694,2]
[401002187,1767883840637,-500.0,0.00011748,2]
[401002189,1767883840646,-200.0,0.00011748,2]
[401002191,1767883840655,-500.0,0.00011748,2]
[401002192,1767883840665,-150.0,0.00011748,2]
[401002194,1767883840675,-150.0,0.00011748,2]
[401002196,1767883840684,-150.0,0.00011748,2]
[401002198,1767883840693,-150.0,0.00011748,2]
[401002199,1767883840703,-217.19962447,0.00011748,2]
[401002201,1767883840712,-500.0,0.00011748,2]
[401002203,1767883840721,-500.0,0.00011748,2]
[401002206,1767883840730,-382.10117033,0.00011803,2]
[401002207,1767883840739,-200.0,0.00011803,2]
[401002209,1767883840749,-500.0,0.00011803,2]
[401002211,1767883840758,-500.0,0.00011803,2]
[401002212,1767883840767,-500.88287597,0.00011803,2]
[401002214,1767883840776,-5284.10968142,0.00011826,2]
[401002216,1767883840784,-500.0,0.00011857,2]
[401002218,1767883840794,-300.0,0.0001186,2]
[401002219,1767883840803,-300.0,0.0001186,2]
[401002221,1767883840812,-300.0,0.0001186,2]
[401002223,1767883840821,-300.0,0.0001186,2]
[401002225,1767883840831,-195.0,0.0001186,2]
[401002227,1767883840840,-195.0,0.00011861,2]
[401002228,1767883840850,-300.0,0.00011861,2]
[401002230,1767883840859,-188.94617776,0.00011861,2]
[401002232,1767883840868,-301.74210524,0.00011861,2]
[401002233,1767883840878,-93501.85197798,0.000119,2]
[401002235,1767883840887,-322.14330526,0.00011912,2]
[401002237,1767883840899,-420.0,0.00011955,2]
[401002239,1767883840908,-1680.0,0.00011966,2]
[401002241,1767883840919,-195.0,0.00011967,2]
[401002243,1767883840928,-250.0,0.00011967,2]
[401002244,1767883840937,-780.84,0.00011968,2]
[401002246,1767883840946,-764.17408071,0.00012043,2]
[401002248,1767883840955,-764.17408071,0.00012043,2]
[401002250,1767883840965,-6977.92736472,0.00012106,2]
[401002252,1767883840976,-255.0,0.00012193,2]
[401002253,1767883840984,-780.84,0.00012242,2]
[401002255,1767883840993,-166.66,0.00012329,2]
[401002257,1767883841004,-166.66,0.00012452,2]
[401002258,1767883841016,-780.84,0.00012516,2]
[401002260,1767883841025,-166.66,0.00012575,2]
[401002262,1767883841034,-160.52,0.0001258,2]
[401002264,1767883841043,-5284.10968142,0.00012585,2]
[401002265,1767883841054,-166.66,0.00012699,2]
[401002267,1767883841063,-780.84,0.0001279,2]
[401002269,1767883841073,-166.66,0.00012822,2]
[401002271,1767883841083,-166.66,0.00012945,2]
[401002273,1767883841092,-764.17408071,0.00013019,2]
[401002274,1767883841101,-764.17408071,0.00013019,2]
[401002276,1767883841110,-780.88,0.00013064,2]
[401002278,1767883841120,-587.0,0.00013139,2]
[401002280,1767883841129,-2351.0,0.00013162,2]
[401002282,1767883841138,-433.0,0.00013341,2]
[401002284,1767883841148,-5284.10968142,0.00013345,2]
[401002285,1767883841158,-150.0,0.00013424,2]
[401002287,1767883841169,-164.77040348,0.00013424,2]
[401002289,1767883841178,-500.0,0.00013424,2]
[401002291,1767883841187,-150.0,0.00013424,2]
[401002293,1767883841196,-150.0,0.00013424,2]
[401002295,1767883841205,-150.0,0.00013424,2]
[401002296,1767883841214,-500.0,0.00013479,2]
[401002298,1767883841224,-150.0,0.00013479,2]
[401002300,1767883841233,-200.0,0.00013479,2]
[401002302,1767883841242,-500.0,0.00013534,2]
[401002304,1767883841251,-150.0,0.00013534,2]
[401002306,1767883841261,-490.48450822,0.00013588,2]
[401002307,1767883841270,-150.0,0.00013588,2]
[401002309,1767883841280,-173.15293317,0.00013611,2]
[401002311,1767883841290,-271.38436778,0.00013643,2]
[401002313,1767883841299,-299.99271759,0.00013688,2]
[401002315,1767883841308,-500.0,0.00013698,2]
[401002316,1767883841317,-502.10445571,0.00013698,2]
[401002318,1767883841327,-500.0,0.00013698,2]
[401002320,1767883841336,-512.68399457,0.00013698,2]
[401002322,1767883841345,-500.0,0.00013698,2]
[401002324,1767883841355,-500.0,0.00013698,2]
[401002326,1767883841364,-500.0,0.00013698,2]
[401002328,1767883841374,-500.0,0.00013698,2]
[401002329,1767883841384,-500.0,0.00013698,2]
[401002331,1767883841394,-500.0,0.00013698,2]
[401002333,1767883841404,-500.0,0.00013698,2]
[401002335,1767883841414,-500.0,0.00013698,2]
[401002337,1767883841424,-500.0,0.00013698,2]
[401002339,1767883841434,-500.0,0.00013698,2]
[401002341,1767883841443,-521.20759762,0.00013698,2]
[401002343,1767883841452,-500.0,0.00013698,2]
[401002344,1767883841462,-500.0,0.00013698,2]
[401002346,1767883841471,-500.0,0.00013698,2]
[401002348,1767883841480,-500.0,0.00013698,2]
[401002350,1767883841490,-500.0,0.00013698,2]
[401002352,1767883841499,-508.0483956,0.00013698,2]
[401002354,1767883841508,-446.86331983,0.00013698,2]
[401002355,1767883841519,-500.0,0.00013698,2]
[401002357,1767883841528,-500.0,0.00013698,2]
[401002359,1767883841538,-500.0,0.00013698,2]
[401002361,1767883841547,-500.0,0.00013698,2]
[401002362,1767883841556,-500.0,0.00013698,2]
[401002364,1767883841566,-500.0,0.00013698,2]
[401002366,1767883841575,-500.0,0.00013698,2]
[401002368,1767883841584,-500.0,0.00013698,2]
[401002370,1767883841594,-621.72362606,0.00013698,2]
[401002372,1767883841603,-500.0,0.00013698,2]
[401002373,1767883841612,-516.18277591,0.00013698,2]
[401002375,1767883841622,-500.0,0.00013698,2]
[401002377,1767883841631,-500.0,0.00013698,2]
[401002379,1767883841641,-500.0,0.00013698,2]
[401002380,1767883841650,-509.20271635,0.00013698,2]
[401002382,1767883841660,-11316.28,0.000137,2]
[401002384,1767883841671,-11316.28,0.000137,2]
[401002386,1767883841680,-764.17408071,0.00013995,2]
[401002388,1767883841690,-5284.10968142,0.00014104,2]
[401002389,1767883841699,-151.0,0.00014142,2]
[401002391,1767883841708,-151.0,0.00014142,2]
[401002393,1767883841717,-151.0,0.00014142,2]
[401002395,1767883841726,-250.0,0.00014247,2]
[401002396,1767883841735,-151.0,0.00014262,2]
[401002398,1767883841744,-151.0,0.00014262,2]
[401002400,1767883841753,-151.0,0.00014262,2]
[401002401,1767883841763,-151.16,0.00014278,2]
[401002403,1767883841773,-365.44,0.00014292,2]
[401002405,1767883841782,-151.0,0.00014307,2]
[401002406,1767883841791,-151.0,0.00014307,2]
[401002408,1767883841800,-199.19,0.00014307,2]
[401002410,1767883841810,-160.52,0.00014377,2]
[401002412,1767883841819,-823.0,0.0001444,2]
[401002413,1767883841828,-3292.0,0.00014479,2]
[401002415,1767883841838,-736.0,0.00014589,2]
[401002417,1767883841847,-1476.6,0.00014617,2]
[401002419,1767883841857,-207.87,0.0001462,2]
[401002421,1767883841867,-150.0,0.00014725,2]
[401002423,1767883841876,-500.83541562,0.00014763,2]
[401002424,1767883841885,-500.0,0.00014763,2]
[401002426,1767883841897,-5284.10968142,0.00014863,2]
[401002428,1767883841907,-500.0,0.00015,2]
[401002430,1767883841917,-1000.0,0.0001531,2]
[401002432,1767883841927,-207.87,0.00015351,2]
[401002433,1767883841936,-152.0,0.0001558,3]
[401002435,1767883841944,-5284.10968142,0.00015622,2]
[401002437,1767883841953,-173.15293317,0.00015756,2]
[401002439,1767883841963,-152.0,0.00015824,4]
[401002441,1767883841972,-1500.0,0.00015858,2]
[401002442,1767883841981,-1123.0,0.0001587,2]
[401002444,1767883841990,-1482.53320655,0.000159,2]
[401002446,1767883842000,-1482.53320652,0.000159,2]
[401002448,1767883842011,-1482.53320652,0.000159,2]
[401002450,1767883842020,-1482.53320652,0.000159,2]
[401002452,1767883842029,-1482.53320652,0.000159,2]
[401002454,1767883842039,-1482.53320652,0.000159,2]
[401002455,1767883842049,-1000.0,0.00015918,2]
[401002457,1767883842059,-4609.0,0.00015926,2]
[401002459,1767883842069,-1252.0,0.0001596,2]
[401002461,1767883842079,-157.72323008,0.00015964,2]
[401002463,1767883842088,-570.13547988,0.00015999,2]
[401002464,1767883842097,-500.0,0.00016013,2]
[401002466,1767883842106,-152.0,0.00016069,5]
[401002468,1767883842118,-207.87,0.00016082,2]
[401002470,1767883842127,-151.0,0.00016113,2]
[401002472,1767883842136,-9999.99,0.00016116,2]
[401002474,1767883842145,-9999.99,0.00016116,2]
[401002476,1767883842154,-218.49130081,0.00016128,2]
[401002477,1767883842164,-160.52,0.00016174,2]
[401002479,1767883842173,-152.0,0.00016314,6]
[401002481,1767883842181,-614.0,0.00016352,2]
[401002483,1767883842190,-1330.0,0.00016352,2]
[401002485,1767883842199,-1405.0,0.00016352,2]
[401002486,1767883842208,-3467.0,0.00016352,2]
[401002488,1767883842217,-1266.0,0.00016352,2]
[401002490,1767883842226,-505.0,0.00016352,2]
[401002492,1767883842236,-150.0,0.00016352,2]
[401002494,1767883842245,-565.0,0.00016352,2]
[401002496,1767883842254,-6552.0,0.00016352,2]
[401002497,1767883842263,-500.0,0.00016381,2]
[401002499,1767883842272,-5284.10968142,0.00016382,2]
[401002501,1767883842281,-2000.0,0.00016406,2]
[401002503,1767883842291,-500.0,0.00016438,2]
[401002505,1767883842301,-500.0,0.00016438,2]
[401002507,1767883842310,-500.0,0.00016438,2]
[401002508,1767883842319,-500.0,0.00016438,2]
[401002509,1767883842328,-500.0,0.00016438,2]
[401002510,1767883842336,-500.0,0.00016438,2]
[401002511,1767883842345,-500.0,0.00016438,2]
[401002512,1767883842354,-500.0,0.00016438,2]
[401002513,1767883842363,-500.0,0.00016438,2]
[401002514,1767883842374,-500.0,0.00016438,2]
[401002515,1767883842383,-320.19289972,0.00016438,2]
[401002516,1767883842392,-500.0,0.00016438,2]
[401002517,1767883842401,-500.0,0.00016438,2]
[401002518,1767883842410,-500.0,0.00016438,2]
[401002519,1767883842420,-1000.0,0.00016515,2]
[401002520,1767883842429,-152.0,0.00016558,7]
[401002521,1767883842439,-165.17,0.00016712,2]
[401002522,1767883842447,-2321.9,0.00016728,2]
[401002523,1767883842456,-157.72323008,0.00016762,2]
[401002524,1767883842465,-152.0,0.00016803,8]
[401002525,1767883842475,-207.87,0.00016813,2]
[401002526,1767883842485,-1000.0,0.00016814,2]
[401002527,1767883842494,-2321.9,0.00016844,2]
[401002528,1767883842503,-2500.0,0.00016954,2]
[401002529,1767883842513,-2321.9,0.00016959,2]
[401002531,1767883842522,-1000.0,0.00016959,2]
[401002532,1767883842532,-500.0,0.00017,5]
[401002534,1767883842541,-500.0,0.00017,2]
[401002536,1767883842551,-500.0,0.00017,5]
[401002538,1767883842560,-328.08928029,0.00017,2]
[401002540,1767883842569,-250.0,0.00017,2]
[401002542,1767883842578,-4000.0,0.00017,2]
[401002544,1767883842588,-152.0,0.00017048,9]
[401002546,1767883842598,-2321.9,0.00017075,2]
[401002549,1767883842607,-578.20924308,0.00017099,2]
[401002551,1767883842617,-300.0,0.00017099,2]
[401002553,1767883842626,-500.0,0.00017099,2]
[401002555,1767883842635,-500.0,0.00017099,2]
[401002557,1767883842644,-500.0,0.00017099,2]
[401002559,1767883842654,-322.61070001,0.00017099,2]
[401002560,1767883842663,-500.0,0.00017099,2]
[401002562,1767883842673,-151.0,0.00017099,2]
[401002564,1767883842682,-500.0,0.00017099,2]
[401002567,1767883842691,-500.0,0.00017099,2]
[401002571,1767883842701,-500.0,0.00017099,2]
[401002573,1767883842710,-500.0,0.00017099,2]
[401002575,1767883842719,-500.0,0.00017099,2]
[401002576,1767883842728,-500.0,0.00017099,2]
[401002578,1767883842737,-500.0,0.00017099,2]
[401002581,1767883842747,-272.12855637,0.00017099,2]
[401002583,1767883842755,-500.0,0.00017099,2]
[401002585,1767883842765,-166.77833559,0.00017099,2]
[401002587,1767883842774,-500.0,0.00017099,2]
[401002589,1767883842783,-500.0,0.00017099,2]
[401002591,1767883842792,-529.58639713,0.00017099,2]
[401002593,1767883842801,-1500.0,0.00017099,2]
[401002595,1767883842810,-1500.0,0.00017099,2]
[401002597,1767883842819,-1500.0,0.00017099,2]
[401002599,1767883842828,-250.0,0.00017099,2]
[401002601,1767883842838,-1500.0,0.00017099,2]